lending/lending_fUSD_20250621
["ID","MTS","AMOUNT","RATE_DAILY","PERIOD"]
[366856953,1750519844154,-150.0,0.00028258,2]
[366856954,1750519844164,-2647.0422788,0.00028259,2]
[366856955,1750519844174,-150.0,0.00028259,2]
[366856956,1750519844184,-150.0,0.00028267,2]
[366856957,1750519844194,-150.0,0.00028275,2]
[366856958,1750519844204,-150.0,0.00028282,2]
[366856959,1750519844213,-150.0,0.00028288,2]
[366856960,1750519844223,-150.0,0.0002829,2]
[366856961,1750519844233,-4822.02770179,0.0002829,3]
[366856962,1750519844243,-173.892,0.000283,19]
[366856963,1750519844252,-867.83108252,0.000283,2]
[366856964,1750519844261,-168.0,0.00028303,2]
[366856965,1750519844271,-203.19164962,0.00028319,2]
[366856966,1750519844281,-194.58,0.00028327,120]
[366856967,1750519844290,-5000.0,0.0002833,2]
[366856968,1750519844300,-558.6462,0.0002833,3]
[366856969,1750519844310,-4822.02770179,0.00028344,3]
[366856970,1750519844319,-722.783,0.00028348,19]
[366856971,1750519844329,-3549.92667076,0.00028354,2]
[366856972,1750519844338,-150.0,0.00028356,2]
[366856973,1750519844348,-415.0,0.00028364,2]
[366856974,1750519844358,-150.0,0.00028383,2]
[366856975,1750519844367,-150.0,0.00028393,2]
[366856976,1750519844377,-150.0,0.00028394,2]
[366856977,1750519844387,-250.0,0.000284,120]
[366856978,1750519844396,-150.0,0.00028401,2]
[366856979,1750519844406,-150.0,0.00028406,2]
[366856980,1750519844416,-150.0,0.00028409,2]
[366856981,1750519844426,-762.7760161,0.00028415,2]
[366856982,1750519844436,-150.0,0.00028419,2]
[366856983,1750519844446,-150.0,0.00028434,2]
[366856984,1750519844455,-17528.1925855,0.00028445,3]
[366856985,1750519844465,-228.71581217,0.00028449,2]
[366856986,1750519844475,-150.0,0.00028472,2]
[366856987,1750519844484,-150.0,0.00028476,2]
[366856988,1750519844493,-150.0,0.00028483,2]
[366856989,1750519844502,-418.0,0.00028484,2]
[366856990,1750519844511,-150.0,0.00028486,2]
[366856991,1750519844520,-4822.02770179,0.0002849,3]
[366856992,1750519844749,-237604.98607031,0.0002849,30]
[366856993,1750519844759,-1000.0,0.00028493,7]
[366856994,1750519844770,-1000.0,0.00028493,7]
[366856995,1750519844780,-1000.0,0.00028493,7]
[366856996,1750519844790,-843.46043222,0.00028493,7]
[366856997,1750519844800,-317.0,0.000285,2]
[366856998,1750519844810,-1024.0,0.000285,2]
[366856999,1750519844820,-1500.0,0.000285,2]
[366857000,1750519844830,-150.0,0.00028507,2]
[366857001,1750519844841,-150.0,0.00028519,2]
[366857002,1750519844851,-150.0,0.00028528,2]
[366857003,1750519844861,-150.0,0.00028533,2]
[366857004,1750519844871,-150.0,0.00028544,2]
[366857005,1750519844880,-150.0,0.00028547,2]
[366857006,1750519844890,-150.0,0.0002855,2]
[366857007,1750519844900,-150.0,0.00028559,2]
[366857008,1750519844910,-352.22249226,0.00028578,2]
[366857009,1750519844919,-4822.02770179,0.0002859,3]
[366857010,1750519844929,-150.0,0.00028591,2]
[366857011,1750519844940,-418.0,0.00028591,7]
[366857013,1750519844949,-150.0,0.00028599,2]
[366857015,1750519844959,-602.37,0.000286,2]
[366857017,1750519844970,-1204.75,0.000286,2]
[366857020,1750519844979,-2500.0,0.000286,10]
[366857022,1750519844989,-168.0,0.00028603,2]
[366857024,1750519845000,-150.0,0.00028606,2]
[366857026,1750519845011,-150.0,0.0002861,2]
[366857029,1750519845021,-150.0,0.00028615,2]
[366857032,1750519845031,-762.77601611,0.00028623,2]
[366857035,1750519845041,-150.0,0.00028638,2]
[366857038,1750519845052,-151.0,0.00028641,3]
[366857041,1750519845062,-150.0,0.00028652,2]
[366857044,1750519845073,-150.0,0.00028658,2]
[366857047,1750519845085,-500.0,0.00028678,4]
[366857050,1750519845097,-662121.99878544,0.00028682,4]
[366857055,1750519845159,-2772.98065775,0.00028682,4]
[366857056,1750519845312,-1212.3,0.00028682,4]
[366857057,1750519845325,-76653.32113071,0.00028682,4]
[366857058,1750519847129,-727.00323687,0.00024699,2]
[366857059,1750519847139,-727.00323687,0.00024699,2]
[366857060,1750519847149,-727.00323687,0.00024699,2]
[366857061,1750519847159,-727.00323687,0.00024699,2]
[366857062,1750519847169,-727.00323687,0.00024699,2]
[366857063,1750519847179,-727.00323687,0.00024699,2]
[366857064,1750519847188,-727.00323687,0.00024699,2]
[366857065,1750519847197,-4095.0,0.00025249,2]
[366857066,1750519847207,-245.32646373,0.00025823,2]
[366857067,1750519847216,-170.94,0.0002787,2]
[366857068,1750519847226,-4095.0,0.00028249,2]
[366857069,1750519847235,-4073443.84220745,0.00028682,4]
[366857070,1750519848383,-1564.4200418,0.00028682,4]
[366857072,1750520043500,374.0,0.00024657,120]
[366857075,1750520585164,250.0,0.00015,2]
[366857077,1750520679732,155.44,0.00013699,2]
[366857108,1750521032395,-151.0,0.00022211,2]
[366857109,1750521032407,-304.21,0.00022713,2]
[366857110,1750521032417,-305.44,0.00022714,2]
[366857111,1750521032427,-301.23,0.00022714,2]
[366857112,1750521032437,-247.47,0.00022855,2]
[366857113,1750521032447,-246.21,0.00022855,2]
[366857114,1750521032457,-253.13,0.00022855,2]
[366857115,1750521032467,-303.2,0.00022864,2]
[366857116,1750521032477,-305.76,0.00022864,2]
[366857117,1750521032488,-300.0,0.00022989,2]
[366857118,1750521032498,-985.80479508,0.00022989,2]
[366857119,1750521032514,-214.19520492,0.00022989,2]
[366857120,1750521032524,-247.12,0.0002299,2]
[366857121,1750521032533,-166.26765017,0.0002299,2]
[366857122,1750521032545,-86.75234983,0.0002299,2]
[366857123,1750521032555,-251.01,0.0002299,2]
[366857124,1750521032564,-250.57,0.0002299,2]
[366857125,1750521032574,-57.68631639,0.00022999,2]
[366857126,1750521032585,-242.31368361,0.00022999,2]
[366857127,1750521032594,-331.18473269,0.00023,2]
[366857128,1750521032604,-305.79,0.00023,2]
[366857129,1750521032614,-302.24,0.00023,2]
[366857130,1750521032625,-300.0,0.00023162,2]
[366857131,1750521032635,-114.3715837,0.00023163,2]
[366857132,1750521032647,-188.5584163,0.00023163,2]
[366857133,1750521032658,-248.95,0.00023163,2]
[366857134,1750521032668,-23.25117485,0.00023163,2]
[366857135,1750521032699,-230.34882515,0.00023163,2]
[366857136,1750521032708,-161.39337362,0.00023163,2]
[366857137,1750521032720,-139.82662638,0.00023163,2]
[366857138,1750521032730,-254.18,0.00023163,2]
[366857139,1750521032740,-248.18,0.00023163,2]
[366857140,1750521032750,-303.94,0.00023163,2]
[366857141,1750521032761,-252.24,0.00023163,2]
[366857142,1750521032776,-249.05,0.00023163,2]
[366857143,1750521032786,-303.25,0.00023163,2]
[366857144,1750521032796,-253.28,0.00023163,2]
[366857145,1750521032806,-251.67,0.00023163,2]
[366857146,1750521032816,-301.09,0.00023163,2]
[366857147,1750521032826,-250.78,0.00023163,2]
[366857148,1750521032836,-247.3,0.00023163,2]
[366857149,1750521032846,-246.16,0.00023163,2]
[366857150,1750521032856,-302.81,0.00023163,2]
[366857151,1750521032867,-245.79,0.00023164,2]
[366857152,1750521032877,-247.32,0.00023164,2]
[366857153,1750521032886,-302.86,0.00023164,2]
[366857154,1750521032896,-252.87,0.00023164,2]
[366857155,1750521032906,-247.68,0.00023164,2]
[366857157,1750521032915,-301.04,0.00023164,2]
[366857159,1750521032925,-249.24,0.00023164,2]
[366857161,1750521032935,-252.52,0.00023164,2]
[366857163,1750521032946,-305.08,0.00023164,2]
[366857165,1750521032958,-246.37,0.00023164,2]
[366857167,1750521032967,-305.18,0.00023164,2]
[366857169,1750521032977,-251.91,0.00023164,2]
[366857171,1750521032987,-253.1,0.00023164,2]
[366857173,1750521032996,-251.93,0.00023165,2]
[366857175,1750521033006,-250.42,0.00023165,2]
[366857178,1750521033016,-301.72,0.00023165,2]
[366857181,1750521033026,-252.86,0.00023165,2]
[366857184,1750521033037,-300.44,0.00023165,2]
[366857187,1750521033047,-251.17,0.00023165,2]
[366857190,1750521033057,-247.01,0.00023165,2]
[366857192,1750521033067,-300.89,0.00023165,2]
[366857194,1750521033078,-252.84,0.00023165,2]
[366857196,1750521033088,-204.00263814,0.00023165,2]
[366857199,1750521033105,-48.17736186,0.00023165,2]
[366857201,1750521033114,-300.84,0.00023165,2]
[366857203,1750521033127,-253.61,0.00023165,2]
[366857205,1750521033137,-253.39,0.00023165,2]
[366857207,1750521033146,-303.56,0.00023165,2]
[366857209,1750521033156,-246.9,0.00023165,2]
[366857211,1750521033167,-245.2,0.00023165,2]
[366857213,1750521033177,-250.4,0.00023165,2]
[366857215,1750521033187,-302.23,0.00023165,2]
[366857217,1750521033196,-303.02,0.00023165,2]
[366857219,1750521033207,-300.0,0.00023166,2]
[366857221,1750521033217,-250.51,0.00023166,2]
[366857223,1750521033227,-303.62,0.00023166,2]
[366857225,1750521033237,-252.72,0.00023166,2]
[366857227,1750521033246,-252.26,0.00023166,2]
[366857229,1750521033257,-304.1,0.00023166,2]
[366857231,1750521033267,-252.85,0.00023166,2]
[366857233,1750521033278,-248.58,0.00023166,2]
[366857235,1750521033288,-302.45,0.00023166,2]
[366857237,1750521033298,-253.03,0.00023166,2]
[366857239,1750521033308,-253.55,0.00023166,2]
[366857241,1750521033318,-303.1,0.00023166,2]
[366857243,1750521033328,-237.58458016,0.00023166,2]
[366857245,1750521033341,-17.25541984,0.00023166,2]
[366857247,1750521033352,-246.98,0.00023166,2]
[366857249,1750521033362,-305.1,0.00023166,2]
[366857251,1750521033374,-304.02,0.00023167,2]
[366857253,1750521033384,-254.39,0.00023167,2]
[366857255,1750521033396,-246.73,0.00023167,2]
[366857258,1750521033406,-303.24,0.00023167,2]
[366857260,1750521033417,-254.32,0.00023167,2]
[366857262,1750521033428,-245.9,0.00023167,2]
[366857264,1750521033437,-300.9,0.00023167,2]
[366857265,1750521033447,-253.02,0.00023167,2]
[366857267,1750521033456,-253.3,0.00023167,2]
[366857269,1750521033466,-305.93,0.00023167,2]
[366857272,1750521033476,-248.98,0.00023167,2]
[366857274,1750521033486,-253.88,0.00023167,2]
[366857276,1750521033495,-15.42343221,0.00023167,2]
[366857333,1750521034774,-290.30656779,0.00023167,2]
[366857334,1750521034784,-253.91,0.00023167,2]
[366857335,1750521034794,-249.73,0.00023167,2]
[366857336,1750521034803,-301.79,0.00023167,2]
[366857337,1750521034813,-251.71,0.00023167,2]
[366857338,1750521034823,-155.44,0.00023182,2]
[366857339,1750521034833,-298.47,0.00023421,2]
[366857340,1750521034843,-666.0,0.00023479,2]
[366857341,1750521034852,-250.0,0.00023563,2]
[366857342,1750521034862,-1442.83,0.0002371,2]
[366857343,1750521034872,-206.72,0.00023836,2]
[366857344,1750521034882,-439.85536303,0.000239,10]
[366857345,1750521034892,-151.0,0.00023974,2]
[366857346,1750521034902,-207.4,0.00023974,2]
[366857347,1750521034913,-151.0,0.00023974,2]
[366857348,1750521034923,-151.0,0.00023974,2]
[366857349,1750521034932,-151.0,0.00023974,2]
[366857350,1750521034943,-151.0,0.00023974,2]
[366857351,1750521034953,-151.0,0.00023974,2]
[366857352,1750521034963,-225.0,0.00023974,2]
[366857353,1750521034972,-227.74,0.00024005,2]
[366857354,1750521034982,-23900.0,0.00024286,2]
[366857355,1750521034992,-439.85536295,0.00024383,11]
[366857356,1750521035002,-1404.07791815,0.00024383,2]
[366857357,1750521035012,-500.0,0.0002443,2]
[366857358,1750521035022,-1000.0,0.00024599,4]
[366857359,1750521035031,-1000.0,0.00024599,4]
[366857360,1750521035041,-1000.0,0.00024599,4]
[366857361,1750521035051,-1000.0,0.00024599,4]
[366857362,1750521035062,-1000.0,0.00024599,4]
[366857363,1750521035071,-1000.0,0.00024599,4]
[366857364,1750521035081,-1000.0,0.00024599,4]
[366857365,1750521035091,-1000.0,0.00024599,4]
[366857366,1750521035100,-1000.0,0.00024599,4]
[366857367,1750521035110,-1000.0,0.00024599,4]
[366857368,1750521035120,-1000.0,0.00024599,4]
[366857369,1750521035129,-1000.0,0.00024599,4]
[366857370,1750521035139,-1000.0,0.00024599,4]
[366857371,1750521035148,-1000.0,0.00024599,4]
[366857372,1750521035158,-1000.0,0.00024599,4]
[366857373,1750521035168,-252.32,0.00024699,2]
[366857374,1750521035177,-245.94,0.00024699,2]
[366857375,1750521035187,-249.24,0.00024699,2]
[366857376,1750521035197,-305.24,0.00024699,2]
[366857377,1750521035207,-245.88,0.00024699,2]
[366857378,1750521035217,-251.52,0.00024699,2]
[366857379,1750521035226,-150.0,0.00024738,2]
[366857380,1750521035236,-2000.0,0.00024782,60]
[366857381,1750521035246,-246.84,0.00024859,2]
[366857382,1750521035255,-246.92,0.00024859,2]
[366857383,1750521035265,-254.79,0.00024859,2]
[366857384,1750521035274,-439.85536295,0.00024866,12]
[366857385,1750521035283,-420.0,0.00024967,2]
[366857386,1750521035293,-202.0,0.00024969,2]
[366857387,1750521035303,-2214.78,0.0002498,2]
[366857388,1750521035313,-150.99,0.0002498,2]
[366857389,1750521035323,-301.91,0.0002502,2]
[366857390,1750521035333,-305.69,0.0002502,2]
[366857391,1750521035342,-150.0,0.00025162,2]
[366857392,1750521035352,-150.0,0.00025317,2]
[366857393,1750521035362,-150.0,0.00025323,2]
[366857394,1750521035372,-156.587,0.00025343,2]
[366857395,1750521035381,-215.0738,0.00025343,2]
[366857396,1750521035393,-439.85536295,0.00025348,13]
[366857397,1750521035402,-150.0,0.0002544,2]
[366857398,1750521035412,-150.0,0.00025583,2]
[366857399,1750521035422,-150.0,0.00025598,2]
[366857400,1750521035432,-150.0,0.00025622,2]
[366857401,1750521035442,-946.0,0.00025648,2]
[366857402,1750521035452,-3335.0,0.00025648,2]
[366857403,1750521035462,-638.0,0.00025648,2]
[366857404,1750521035472,-803.0,0.00025648,2]
[366857405,1750521035481,-1161.0,0.00025648,2]
[366857406,1750521035491,-526.645,0.00025648,2]
[366857407,1750521035501,-928.0,0.00025648,2]
[366857408,1750521035511,-559.0,0.00025648,2]
[366857409,1750521035520,-2005.0,0.00025648,2]
[366857410,1750521035532,-1676.0,0.00025648,2]
[366857411,1750521035542,-855.0,0.00025648,2]
[366857412,1750521035552,-6031.073,0.00025648,2]
[366857413,1750521035561,-156.0,0.00025648,2]
[366857414,1750521035571,-150.0,0.00025696,2]
[366857415,1750521035581,-150.0,0.0002571,2]
[366857416,1750521035592,-2216.2145,0.00025763,2]
[366857417,1750521035602,-150.0,0.00025808,2]
[366857418,1750521035611,-439.85536295,0.00025831,13]
[366857419,1750521035622,-6844.28163048,0.00025863,2]
[366857420,1750521035632,-2500.0,0.0002589,2]
[366857421,1750521035642,-500.0,0.000259,2]
[366857422,1750521035652,-1633.7725,0.000259,2]
[366857423,1750521035662,-1000.0,0.000259,2]
[366857424,1750521035672,-4878.06067888,0.000259,2]
[366857425,1750521035682,-154.94856918,0.000259,2]
[366857426,1750521035691,-178.20567917,0.000259,2]
[366857427,1750521035701,-246.5557446,0.000259,2]
[366857428,1750521035712,-150.0,0.00025926,2]
[366857429,1750521035722,-150.0,0.00025937,2]
[366857430,1750521035732,-150.0,0.00025957,2]
[366857431,1750521035742,-80950.8130856,0.0002599,3]
[366857432,1750521035752,-316660.51178,0.00026,2]
[366857433,1750521035762,-2000.0,0.00026,2]
[366857434,1750521035772,-150.0,0.00026023,2]
[366857435,1750521035781,-154.94856918,0.00026052,2]
[366857436,1750521035791,-150.0,0.00026087,2]
[366857437,1750521035801,-150.0,0.00026111,2]
[366857438,1750521035811,-150.0,0.00026197,2]
[366857439,1750521035820,-154.94856918,0.00026203,2]
[366857440,1750521035830,-4878.06067886,0.00026233,2]
[366857441,1750521035840,-150.0,0.00026263,2]
[366857442,1750521035850,-202.0,0.00026266,4]
[366857443,1750521035860,-150.0,0.00026283,2]
[366857444,1750521035870,-439.85536295,0.00026314,14]
[366857445,1750521035880,-298.47,0.00026349,120]
[366857446,1750521035890,-154.94856918,0.00026355,2]
[366857447,1750521035899,-2000.0,0.00026382,60]
[366857448,1750521035909,-150.0,0.00026413,2]
[366857449,1750521035919,-150.0,0.00026414,2]
[366857450,1750521035928,-150.0,0.0002642,2]
[366857451,1750521035938,-150.0,0.00026483,2]
[366857452,1750521035948,-1694.8,0.000265,2]
[366857453,1750521035957,-154.94856918,0.00026506,2]
[366857454,1750521035967,-246.55574458,0.00026511,2]
[366857455,1750521035976,-150.0,0.00026512,2]
[366857456,1750521035987,-178.20567916,0.00026528,2]
[366857457,1750521035997,-150.0,0.00026539,2]
[366857458,1750521036007,-842.0,0.0002654,7]
[366857459,1750521036017,-150.0,0.00026555,2]
[366857460,1750521036027,-4878.06067886,0.00026567,2]
[366857461,1750521036036,-150.0,0.00026614,2]
[366857462,1750521036046,-150.0,0.00026646,2]
[366857463,1750521036055,-16190.1626171,0.00026648,3]
[366857464,1750521036065,-151.0,0.00026657,2]
[366857465,1750521036075,-154.94856918,0.00026658,2]
[366857466,1750521036085,-162.380719,0.00026712,2]
[366857467,1750521036095,-223.0315306,0.00026712,2]
[366857468,1750521036105,-150.0,0.0002672,2]
[366857469,1750521036114,-150.0,0.00026742,2]
[366857470,1750521036124,-439.85536295,0.00026797,15]
[366857471,1750521036133,-154.94856918,0.00026809,2]
[366857472,1750521036143,-150.0,0.00026832,2]
[366857473,1750521036152,-162.37,0.00026867,2]
[366857474,1750521036162,-196.73,0.00026867,2]
[366857475,1750521036171,-150.0,0.00026878,2]
[366857476,1750521036182,-150.0,0.00026881,2]
[366857477,1750521036191,-2440.61077286,0.000269,2]
[366857479,1750521038337,-401.78785186,0.00025648,2]
[366857480,1750521038349,-1187.73065623,0.00025648,2]
[366857502,1750521040602,-864.89827326,0.00025648,2]
[366857503,1750521040614,-1099.533603,0.00025648,2]
[366857520,1750521047163,-304.58,0.00023167,2]
[366857521,1750521047173,-188.40341964,0.00025648,2]
[366857522,1750521047197,-352.64619601,0.00025648,2]
[366857523,1750521047207,-885.0,0.00025648,2]
[366857524,1750521047216,-2437.449906,0.000269,2]
[366857525,1750521047226,-228.71581217,0.00026906,2]
[366857526,1750521047236,-174.52119531,0.00026947,2]
[366857527,1750521047246,-154.94856918,0.00026961,2]
[366857528,1750521047258,-150.0,0.00026983,2]
[366857529,1750521047268,-176.15375822,0.00027,2]
[366857530,1750521047277,-2110.0,0.00027,2]
[366857531,1750521047287,-509.72,0.00027046,2]
[366857532,1750521047296,-455.52,0.00027046,2]
[366857533,1750521047306,-150.0,0.00027056,2]
[366857534,1750521047316,-150.0,0.00027096,2]
[366857535,1750521047326,-587.0,0.00027103,2]
[366857536,1750521047336,-154.94856918,0.00027113,2]
[366857537,1750521047346,-246.55574458,0.00027122,2]
[366857538,1750521047356,-178.20567916,0.00027157,2]
[366857539,1750521047366,-319.62452292,0.00027233,2]
[366857540,1750521047379,-4558.43615594,0.00027233,2]
[366857541,1750521047389,-150.0,0.00027248,2]
[366857542,1750521047399,-150.0,0.00027258,2]
[366857543,1750521047408,-1000.0,0.00027263,2]
[366857544,1750521047419,-154.94856918,0.00027264,2]
[366857545,1750521047428,-439.85536295,0.00027279,16]
[366857546,1750521047438,-168.0,0.00027318,2]
[366857547,1750521047448,-150.0,0.00027319,2]
[366857548,1750521047457,-150.0,0.00027368,2]
[366857549,1750521047467,-16190.1626171,0.00027387,3]
[366857550,1750521047477,-164.74,0.00027397,80]
[366857551,1750521047487,-4965.72,0.00027397,2]
[366857552,1750521047497,-150.0,0.00027397,2]
[366857553,1750521047506,-300.0,0.00027397,2]
[366857554,1750521047516,-150.0,0.00027406,2]
[366857555,1750521047527,-154.94856918,0.00027416,2]
[366857556,1750521047539,-150.0,0.00027423,2]
[366857557,1750521047549,-150.0,0.00027454,2]
[366857558,1750521047558,-150.0,0.00027468,2]
[366857559,1750521047568,-168.0,0.00027495,2]
[366857560,1750521047578,-2110.0,0.000275,2]
[366857561,1750521047588,-150.0,0.00027512,2]
[366857562,1750521047598,-150.0,0.00027531,2]
[366857563,1750521047608,-150.0,0.00027538,2]
[366857564,1750521047618,-202.0,0.00027564,6]
[366857565,1750521047629,-4878.06067886,0.00027567,2]
[366857566,1750521047639,-154.94856918,0.00027567,2]
[366857567,1750521047648,-150.0,0.00027573,2]
[366857568,1750521047658,-339.0,0.0002763,2]
[366857569,1750521047668,-150.0,0.00027662,2]
[366857570,1750521047678,-150.0,0.00027681,2]
[366857571,1750521047688,-1000.0,0.0002769,2]
[366857572,1750521047698,-500.0,0.000277,2]
[366857573,1750521047708,-1200.0,0.000277,2]
[366857574,1750521047718,-154.94856918,0.00027719,2]
[366857575,1750521047728,-246.55574458,0.00027733,2]
[366857576,1750521047738,-168.0,0.00027734,2]
[366857577,1750521047749,-439.85536295,0.00027762,17]
[366857578,1750521047758,-178.20567916,0.00027785,2]
[366857579,1750521047768,-150.0,0.00027815,2]
[366857580,1750521047778,-16190.1626171,0.00027858,3]
[366857581,1750521047787,-798.09,0.00027861,2]
[366857582,1750521047797,-798.09,0.00027861,2]
[366857583,1750521047807,-326.38,0.00027868,2]
[366857584,1750521047816,-163.58,0.0002787,2]
[366857585,1750521047826,-327.16,0.0002787,2]
[366857586,1750521047836,-154.94856918,0.00027871,2]
[366857587,1750521047846,-339.0,0.00027881,2]
[366857588,1750521047856,-150.0,0.00027881,2]
[366857589,1750521047866,-4878.06067886,0.000279,2]
[366857590,1750521047878,-1500.0,0.000279,10]
[366857591,1750521047889,-150.0,0.00027918,2]
[366857592,1750521047899,-16190.1626171,0.0002799,3]
[366857593,1750521047908,-2985.06476776,0.0002799,3]
[366857594,1750521047918,-826.0,0.00028,3]
[366857595,1750521047928,-2999.99,0.00028,2]
[366857596,1750521047938,-2999.97,0.00028,2]
[366857597,1750521047947,-1787.97,0.00028,2]
[366857598,1750521047957,-2999.99,0.00028,2]
[366857599,1750521047967,-2999.99,0.00028,2]
[366857600,1750521047976,-278.88,0.00028,2]
[366857601,1750521047986,-3000.03,0.00028,2]
[366857602,1750521047995,-2110.0,0.00028,2]
[366857603,1750521048005,-2161.883809,0.00028,2]
[366857604,1750521048014,-4708.95,0.00028,2]
[366857605,1750521048023,-511.0,0.00028,30]
[366857606,1750521048033,-150.0,0.00028022,2]
[366857607,1750521048043,-154.94856918,0.00028022,2]
[366857608,1750521048053,-150.0,0.0002803,2]
[366857609,1750521048063,-150.0,0.00028071,2]
[366857610,1750521048072,-168.3888056,0.00028081,2]
[366857611,1750521048082,-231.28369723,0.00028081,2]
[366857612,1750521048092,-150.0,0.00028095,2]
[366857613,1750521048102,-376.0,0.000281,2]
[366857614,1750521048111,-769.0,0.000281,2]
[366857615,1750521048121,-238.0,0.000281,2]
[366857616,1750521048132,-150.0,0.0002811,2]
[366857617,1750521048142,-150.0,0.00028118,2]
[366857618,1750521048153,-1648.32786,0.00028121,8]
[366857619,1750521048163,-150.0,0.00028134,2]
[366857620,1750521048174,-762.7760161,0.00028152,2]
[366857621,1750521048187,-16190.1626171,0.00028154,3]
[366857622,1750521048206,-2985.06476776,0.00028154,3]
[366857623,1750521048229,-150.0,0.00028165,2]
[366857624,1750521048251,-150.0,0.00028165,2]
[366857625,1750521048264,-150.0,0.00028165,2]
[366857626,1750521048274,-150.0,0.00028165,2]
[366857627,1750521048285,-150.0,0.00028165,2]
[366857628,1750521048295,-150.0,0.00028165,2]
[366857629,1750521048305,-150.0,0.00028165,2]
[366857630,1750521048315,-150.0,0.00028165,2]
[366857631,1750521048325,-150.0,0.00028165,2]
[366857632,1750521048334,-223.193,0.00028165,2]
[366857633,1750521048344,-154.94856918,0.00028174,2]
[366857634,1750521048354,-150.0,0.00028179,2]
[366857635,1750521048364,-2000.0,0.000282,2]
[366857636,1750521048374,-2985.06476776,0.00028223,3]
[366857637,1750521048384,-762.77601611,0.00028229,2]
[366857638,1750521048394,-339.0,0.00028232,2]
[366857639,1750521048404,-4878.06067886,0.00028233,2]
[366857640,1750521048414,-439.85536295,0.00028245,18]
[366857641,1750521048426,-16190.1626171,0.00028261,3]
[366857642,1750521048436,-2985.06476776,0.00028261,3]
[366857643,1750521048446,-500.0,0.00028271,2]
[366857644,1750521048456,-500.0,0.00028271,2]
[366857645,1750521048466,-500.0,0.00028271,2]
[366857646,1750521048476,-500.0,0.00028271,2]
[366857647,1750521048486,-500.0,0.00028271,2]
[366857648,1750521048496,-553.0,0.00028271,2]
[366857649,1750521048506,-500.0,0.00028271,2]
[366857650,1750521048515,-500.0,0.00028271,2]
[366857651,1750521048525,-500.0,0.00028271,2]
[366857652,1750521048539,-500.0,0.00028271,2]
[366857653,1750521048549,-500.0,0.00028271,2]
[366857654,1750521048560,-500.0,0.00028271,2]
[366857655,1750521048571,-500.0,0.00028271,2]
[366857656,1750521048580,-500.0,0.00028271,2]
[366857657,1750521048590,-500.0,0.00028271,2]
[366857658,1750521048600,-500.0,0.00028271,2]
[366857659,1750521048613,-500.0,0.00028271,2]
[366857660,1750521048623,-500.0,0.00028271,2]
[366857661,1750521048634,-500.0,0.00028271,2]
[366857662,1750521048644,-500.0,0.00028271,2]
[366857663,1750521048654,-500.0,0.00028271,2]
[366857664,1750521048664,-500.0,0.00028271,2]
[366857665,1750521048674,-500.0,0.00028271,2]
[366857666,1750521048684,-150.0,0.00028309,2]
[366857667,1750521048694,-154.94856918,0.00028325,2]
[366857668,1750521048704,-150.0,0.00028343,2]
[366857669,1750521048715,-246.55574458,0.00028344,2]
[366857670,1750521048725,-150.0,0.00028372,2]
[366857671,1750521048735,-2985.06476776,0.0002838,3]
[366857672,1750521048745,-2985.06476776,0.0002839,3]